[Event "Titled Tuesday Blitz May 9 Late 2023"]
[White "Georg, Heinz"]
[Black "Remolar Gallen, Jose"]
[WhiteFideId "4607295"]
[BlackFideId "2215187"]
[WhiteElo "2291"]
[BlackElo "2223"]
[Result "1-0"]
[Round "02"]
[TimeControl "180+2"]
[Date "2023.05.09"]
[WhiteClock "0:00:14"]
[BlackClock "0:00:00"]

1. c4 {[%clk 0:03:00]}  Nf6 {[%clk 0:02:57]} 2. Nc3 {[%clk 0:03:00]}  g6 {[%clk 0:02:57]} 3. d4 {[%clk 0:02:57]}  Bg7 {[%clk 0:02:57]} 4. e4 {[%clk 0:02:57]}  d6 {[%clk 0:02:55]} 5. Be2 {[%clk 0:02:58]}  O-O {[%clk 0:02:55]} 6. Be3 {[%clk 0:02:57]}  a6 {[%clk 0:02:54]} 7. g4 {[%clk 0:02:55]}  c5 {[%clk 0:02:49]} 8. d5 {[%clk 0:02:53]}  b5 {[%clk 0:02:47]} 9. g5 {[%clk 0:02:53]}  Nfd7 {[%clk 0:02:44]} 10. cxb5 {[%clk 0:02:47]}  axb5 {[%clk 0:02:45]} 11. Bxb5 {[%clk 0:02:46]}  Qa5 {[%clk 0:02:42]} 12. Be2 {[%clk 0:02:07]}  Ba6 {[%clk 0:02:34]} 13. Qd2 {[%clk 0:01:54]}  Bxe2 {[%clk 0:02:20]} 14. Kxe2 {[%clk 0:01:49]}  Ne5 {[%clk 0:02:13]} 15. Rc1 {[%clk 0:01:35]}  Qa6+ {[%clk 0:01:17]} 16. Kd1 {[%clk 0:01:28]}  Qf1+ {[%clk 0:01:03]} 17. Qe1 {[%clk 0:01:27]}  Qg2 {[%clk 0:00:57]} 18. Nge2 {[%clk 0:01:24]}  Nd3 {[%clk 0:00:50]} 19. Qf1 {[%clk 0:01:14]}  Qxf1+ {[%clk 0:00:48]} 20. Rxf1 {[%clk 0:01:15]}  Nxc1 {[%clk 0:00:48]} 21. Kxc1 {[%clk 0:01:13]}  Nd7 {[%clk 0:00:48]} 22. a4 {[%clk 0:01:12]}  Rfb8 {[%clk 0:00:48]} 23. f4 {[%clk 0:01:10]}  Nb6 {[%clk 0:00:47]} 24. b3 {[%clk 0:01:01]}  c4 {[%clk 0:00:45]} 25. Bxb6 {[%clk 0:00:56]}  Rxb6 {[%clk 0:00:46]} 26. bxc4 {[%clk 0:00:56]}  Rb4 {[%clk 0:00:44]} 27. Kc2 {[%clk 0:00:50]}  Rxc4 {[%clk 0:00:40]} 28. Kd3 {[%clk 0:00:51]}  Rac8 {[%clk 0:00:40]} 29. Rc1 {[%clk 0:00:47]}  Kf8 {[%clk 0:00:32]} 30. a5 {[%clk 0:00:41]}  Ke8 {[%clk 0:00:32]} 31. a6 {[%clk 0:00:41]}  Kd7 {[%clk 0:00:30]} 32. a7 {[%clk 0:00:41]}  R4c7 {[%clk 0:00:24]} 33. Nb5 {[%clk 0:00:35]}  Rxc1 {[%clk 0:00:22]} 34. Nxc1 {[%clk 0:00:36]}  Ra8 {[%clk 0:00:19]} 35. Nb3 {[%clk 0:00:36]}  Kc8 {[%clk 0:00:18]} 36. Na5 {[%clk 0:00:36]}  h6 {[%clk 0:00:17]} 37. h4 {[%clk 0:00:35]}  hxg5 {[%clk 0:00:17]} 38. hxg5 {[%clk 0:00:35]}  f6 {[%clk 0:00:18]} 39. Nc6 {[%clk 0:00:33]}  fxg5 {[%clk 0:00:17]} 40. Nxe7+ {[%clk 0:00:29]}  Kb7 {[%clk 0:00:17]} 41. fxg5 {[%clk 0:00:27]}  Kb6 {[%clk 0:00:17]} 42. Nxd6 {[%clk 0:00:26]}  Kxa7 {[%clk 0:00:16]} 43. Nxg6 {[%clk 0:00:23]}  Kb6 {[%clk 0:00:12]} 44. Nf5 {[%clk 0:00:22]}  Ra3+ {[%clk 0:00:11]} 45. Ke2 {[%clk 0:00:22]}  Bc3 {[%clk 0:00:09]} 46. Nf4 {[%clk 0:00:20]}  Kc7 {[%clk 0:00:06]} 47. g6 {[%clk 0:00:19]}  Kd7 {[%clk 0:00:05]} 48. g7 {[%clk 0:00:19]}  Ra8 {[%clk 0:00:05]} 49. Ne6 {[%clk 0:00:20]}  Rg8 {[%clk 0:00:04]} 50. Kf3 {[%clk 0:00:19]}  Bf6 {[%clk 0:00:02]} 51. Nh6 {[%clk 0:00:18]}  Rxg7 {[%clk 0:00:02]} 52. Nxg7 {[%clk 0:00:19]}  Bxg7 {[%clk 0:00:03]} 53. Nf5 {[%clk 0:00:20]}  Bf6 {[%clk 0:00:04]} 54. Kf4 {[%clk 0:00:20]}  Bb2 {[%clk 0:00:04]} 55. e5 {[%clk 0:00:20]}  Bc1+ {[%clk 0:00:04]} 56. Ke4 {[%clk 0:00:20]}  Ke8 {[%clk 0:00:04]} 57. d6 {[%clk 0:00:20]}  Bb2 {[%clk 0:00:02]} 58. Kd5 {[%clk 0:00:20]}  Kd7 {[%clk 0:00:02]} 59. e6+ {[%clk 0:00:20]}  Ke8 {[%clk 0:00:03]} 60. d7+ {[%clk 0:00:18]}  Kd8 {[%clk 0:00:03]} 61. Kc6 {[%clk 0:00:19]}  Ba3 {[%clk 0:00:03]} 62. Nh6 {[%clk 0:00:18]}  Ke7 {[%clk 0:00:01]} 63. Nf7 {[%clk 0:00:18]}  Kxe6 {[%clk 0:00:02]} 64. d8=Q {[%clk 0:00:17]}  Kxf7 {[%clk 0:00:02]} 65. Qd7+ {[%clk 0:00:16]}  Be7 {[%clk 0:00:01]} 66. Qf5+ {[%clk 0:00:16]}  Ke8 {[%clk 0:00:02]} 67. Kd5 {[%clk 0:00:15]}  Kd8 {[%clk 0:00:00]} 68. Ke6 {[%clk 0:00:14]} 1-0


[Site "https://www.chess.com"]

[Event "Titled Tuesday Blitz May 9 Late 2023"]
[White "Martinez, Shawn"]
[Black "Hirneise, Jens"]
[WhiteFideId "2039770"]
[BlackFideId "24614734"]
[WhiteElo "2174"]
[BlackElo "2345"]
[Result "1-0"]
[Round "02"]
[TimeControl "180+2"]
[Date "2023.05.09"]
[WhiteClock "0:00:10"]
[BlackClock "0:00:00"]

1. e4 {[%clk 0:03:00]}  c6 {[%clk 0:02:49]} 2. d4 {[%clk 0:02:56]}  g6 {[%clk 0:02:50]} 3. c3 {[%clk 0:02:52]}  Bg7 {[%clk 0:02:41]} 4. Bd3 {[%clk 0:02:51]}  d6 {[%clk 0:02:39]} 5. Nd2 {[%clk 0:02:49]}  Nd7 {[%clk 0:02:39]} 6. Ngf3 {[%clk 0:02:49]}  e5 {[%clk 0:02:39]} 7. O-O {[%clk 0:02:49]}  Ne7 {[%clk 0:02:39]} 8. Re1 {[%clk 0:02:49]}  O-O {[%clk 0:02:38]} 9. a4 {[%clk 0:02:47]}  a5 {[%clk 0:02:36]} 10. Qb3 {[%clk 0:02:35]}  Qc7 {[%clk 0:02:33]} 11. Nc4 {[%clk 0:02:31]}  h6 {[%clk 0:02:27]} 12. Be3 {[%clk 0:02:25]}  exd4 {[%clk 0:01:42]} 13. Bxd4 {[%clk 0:02:10]}  Nc5 {[%clk 0:01:40]} 14. Qc2 {[%clk 0:02:05]}  Nxd3 {[%clk 0:01:32]} 15. Qxd3 {[%clk 0:02:05]}  Bxd4 {[%clk 0:01:25]} 16. cxd4 {[%clk 0:01:57]}  d5 {[%clk 0:01:24]} 17. Nce5 {[%clk 0:01:50]}  dxe4 {[%clk 0:01:22]} 18. Qxe4 {[%clk 0:01:50]}  Nd5 {[%clk 0:01:19]} 19. Rac1 {[%clk 0:01:45]}  Qd6 {[%clk 0:01:15]} 20. Qh4 {[%clk 0:01:40]}  Kg7 {[%clk 0:01:14]} 21. Ng4 {[%clk 0:01:36]}  Qf4 {[%clk 0:01:04]} 22. h3 {[%clk 0:01:27]}  h5 {[%clk 0:01:00]} 23. Ng5 {[%clk 0:01:22]}  Bxg4 {[%clk 0:00:47]} 24. hxg4 {[%clk 0:01:20]}  Qxg4 {[%clk 0:00:46]} 25. Qxg4 {[%clk 0:01:15]}  hxg4 {[%clk 0:00:47]} 26. Re4 {[%clk 0:01:15]}  f5 {[%clk 0:00:33]} 27. Re5 {[%clk 0:01:05]}  Kf6 {[%clk 0:00:30]} 28. Nh7+ {[%clk 0:01:05]}  Kf7 {[%clk 0:00:26]} 29. Nxf8 {[%clk 0:01:06]}  Rxf8 {[%clk 0:00:24]} 30. Rce1 {[%clk 0:01:02]}  Rd8 {[%clk 0:00:23]} 31. f3 {[%clk 0:00:52]}  gxf3 {[%clk 0:00:22]} 32. gxf3 {[%clk 0:00:52]}  Rd7 {[%clk 0:00:22]} 33. Kf2 {[%clk 0:00:52]}  Nb4 {[%clk 0:00:22]} 34. R1e3 {[%clk 0:00:40]}  Nc2 {[%clk 0:00:15]} 35. Rc3 {[%clk 0:00:38]}  Nxd4 {[%clk 0:00:11]} 36. Rxa5 {[%clk 0:00:37]}  Ne6 {[%clk 0:00:10]} 37. Rc2 {[%clk 0:00:35]}  Nf4 {[%clk 0:00:09]} 38. Ra7 {[%clk 0:00:34]}  Nd3+ {[%clk 0:00:08]} 39. Kg3 {[%clk 0:00:33]}  g5 {[%clk 0:00:06]} 40. a5 {[%clk 0:00:32]}  f4+ {[%clk 0:00:04]} 41. Kg4 {[%clk 0:00:30]}  Kf6 {[%clk 0:00:04]} 42. a6 {[%clk 0:00:19]}  Rh7 {[%clk 0:00:03]} 43. Rxc6+ {[%clk 0:00:12]}  Ke5 {[%clk 0:00:00]} 44. Rxb7 {[%clk 0:00:10]} 1-0


[Site "https://www.chess.com"]

[Event "Titled Tuesday Blitz May 9 Late 2023"]
[White "koncheto"]
[Black "Vaglio Munoz, Jaime"]
[BlackFideId "6500145"]
[WhiteElo "2477"]
[BlackElo "2199"]
[Result "1-0"]
[Round "02"]
[TimeControl "180+2"]
[Date "2023.05.09"]
[WhiteClock "0:01:07"]
[BlackClock "0:01:13"]

1. e4 {[%clk 0:03:00]}  e6 {[%clk 0:02:59]} 2. d4 {[%clk 0:03:01]}  d5 {[%clk 0:02:59]} 3. Nd2 {[%clk 0:03:02]}  dxe4 {[%clk 0:02:59]} 4. Nxe4 {[%clk 0:03:02]}  Nf6 {[%clk 0:02:59]} 5. Bd3 {[%clk 0:03:03]}  Nbd7 {[%clk 0:02:57]} 6. Qe2 {[%clk 0:03:02]}  Bd6 {[%clk 0:02:53]} 7. Nf3 {[%clk 0:02:58]}  h6 {[%clk 0:02:53]} 8. c3 {[%clk 0:02:56]}  O-O {[%clk 0:02:51]} 9. h4 {[%clk 0:02:53]}  Re8 {[%clk 0:02:51]} 10. Nfg5 {[%clk 0:02:31]}  e5 {[%clk 0:02:46]} 11. Bc4 {[%clk 0:02:30]}  Nxe4 {[%clk 0:02:30]} 12. Nxf7 {[%clk 0:02:12]}  Qf6 {[%clk 0:02:17]} 13. Nxd6+ {[%clk 0:02:07]}  Kh8 {[%clk 0:02:16]} 14. Nxe8 {[%clk 0:02:06]}  Qf5 {[%clk 0:02:04]} 15. Bd3 {[%clk 0:02:04]}  Qe6 {[%clk 0:01:57]} 16. Qxe4 {[%clk 0:02:03]}  Nf8 {[%clk 0:01:54]} 17. Nxc7 {[%clk 0:02:01]}  Qf6 {[%clk 0:01:49]} 18. dxe5 {[%clk 0:01:55]}  Qf7 {[%clk 0:01:49]} 19. Nxa8 {[%clk 0:01:54]}  Be6 {[%clk 0:01:49]} 20. h5 {[%clk 0:01:47]}  Bd5 {[%clk 0:01:48]} 21. Qf5 {[%clk 0:01:47]}  Qe8 {[%clk 0:01:47]} 22. Rh4 {[%clk 0:01:46]}  Be6 {[%clk 0:01:45]} 23. Qe4 {[%clk 0:01:45]}  Qxa8 {[%clk 0:01:45]} 24. Rf4 {[%clk 0:01:45]}  Bg8 {[%clk 0:01:42]} 25. b3 {[%clk 0:01:40]}  Ne6 {[%clk 0:01:43]} 26. Rf7 {[%clk 0:01:33]}  Qe8 {[%clk 0:01:39]} 27. Rf3 {[%clk 0:01:20]}  Qxh5 {[%clk 0:01:38]} 28. Be3 {[%clk 0:01:17]}  Qh1+ {[%clk 0:01:37]} 29. Bf1 {[%clk 0:01:17]}  Qh5 {[%clk 0:01:29]} 30. O-O-O {[%clk 0:01:17]}  Bh7 {[%clk 0:01:29]} 31. Qxb7 {[%clk 0:01:08]}  Qg6 {[%clk 0:01:27]} 32. Bd3 {[%clk 0:01:08]}  Qxg2 {[%clk 0:01:26]} 33. Rf8+ {[%clk 0:01:08]}  Bg8 {[%clk 0:01:25]} 34. Qxg2 {[%clk 0:01:09]}  Nxf8 {[%clk 0:01:23]} 35. Bxh6 {[%clk 0:01:06]}  gxh6 {[%clk 0:01:13]} 36. Rg1 {[%clk 0:01:07]} 1-0


[Site "https://www.chess.com"]

[Event "Titled Tuesday Blitz May 9 Late 2023"]
[White "Svicevic, Rastko"]
[Black "De Prado Rodriguez, Oscar Bruno"]
[WhiteFideId "916315"]
[BlackFideId "2203600"]
[WhiteElo "2115"]
[BlackElo "2190"]
[Result "1-0"]
[Round "02"]
[TimeControl "180+2"]
[Date "2023.05.09"]
[WhiteClock "0:00:06"]
[BlackClock "0:00:42"]

1. d4 {[%clk 0:03:00]}  f5 {[%clk 0:02:00]} 2. Bg5 {[%clk 0:02:53]}  c6 {[%clk 0:02:00]} 3. e3 {[%clk 0:02:48]}  Qb6 {[%clk 0:02:01]} 4. b3 {[%clk 0:02:44]}  d6 {[%clk 0:02:01]} 5. Bd3 {[%clk 0:02:36]}  g6 {[%clk 0:02:01]} 6. h4 {[%clk 0:02:26]}  Bg7 {[%clk 0:02:01]} 7. h5 {[%clk 0:02:26]}  h6 {[%clk 0:02:01]} 8. Bh4 {[%clk 0:02:00]}  g5 {[%clk 0:02:01]} 9. Bg3 {[%clk 0:02:00]}  e5 {[%clk 0:01:57]} 10. dxe5 {[%clk 0:01:57]}  dxe5 {[%clk 0:01:57]} 11. c3 {[%clk 0:01:47]}  f4 {[%clk 0:01:56]} 12. Bg6+ {[%clk 0:01:45]}  Kf8 {[%clk 0:01:55]} 13. exf4 {[%clk 0:01:39]}  exf4 {[%clk 0:01:55]} 14. Bh2 {[%clk 0:01:18]}  Ne7 {[%clk 0:01:54]} 15. Nf3 {[%clk 0:01:07]}  Nxg6 {[%clk 0:01:52]} 16. hxg6 {[%clk 0:01:08]}  Bf5 {[%clk 0:01:48]} 17. O-O {[%clk 0:01:02]}  Bxg6 {[%clk 0:01:47]} 18. Nd4 {[%clk 0:00:55]}  Kg8 {[%clk 0:01:46]} 19. Nd2 {[%clk 0:00:52]}  Na6 {[%clk 0:01:44]} 20. Nc4 {[%clk 0:00:52]}  Qc5 {[%clk 0:01:39]} 21. g3 {[%clk 0:00:50]}  fxg3 {[%clk 0:01:37]} 22. Bxg3 {[%clk 0:00:48]}  Rd8 {[%clk 0:01:37]} 23. Qe2 {[%clk 0:00:42]}  Kh7 {[%clk 0:01:36]} 24. Ne6 {[%clk 0:00:29]}  Qe7 {[%clk 0:01:34]} 25. Qg4 {[%clk 0:00:28]}  Rde8 {[%clk 0:01:28]} 26. Nxg7 {[%clk 0:00:28]}  Qxg7 {[%clk 0:01:28]} 27. Rae1 {[%clk 0:00:24]}  h5 {[%clk 0:01:27]} 28. Qxg5 {[%clk 0:00:22]}  Rxe1 {[%clk 0:01:25]} 29. Rxe1 {[%clk 0:00:21]}  Rf8 {[%clk 0:01:25]} 30. Re7 {[%clk 0:00:21]}  Rf7 {[%clk 0:01:25]} 31. Be5 {[%clk 0:00:20]}  Qg8 {[%clk 0:01:18]} 32. Rxf7+ {[%clk 0:00:15]}  Qxf7 {[%clk 0:01:18]} 33. Qd8 {[%clk 0:00:12]}  Bd3 {[%clk 0:01:12]} 34. Qh8+ {[%clk 0:00:11]}  Kg6 {[%clk 0:01:12]} 35. Ne3 {[%clk 0:00:11]}  Nc5 {[%clk 0:01:08]} 36. Bg3 {[%clk 0:00:06]}  Ne4 {[%clk 0:01:04]} 37. Qb8 {[%clk 0:00:06]}  Nxg3 {[%clk 0:01:04]} 38. Qxg3+ {[%clk 0:00:06]}  Kh7 {[%clk 0:01:04]} 39. Qg5 {[%clk 0:00:05]}  Bg6 {[%clk 0:01:03]} 40. Qe5 {[%clk 0:00:04]}  a6 {[%clk 0:01:03]} 41. Kg2 {[%clk 0:00:03]}  b5 {[%clk 0:01:01]} 42. Qc5 {[%clk 0:00:01]}  Be4+ {[%clk 0:01:00]} 43. Kf1 {[%clk 0:00:01]}  Qg6 {[%clk 0:00:58]} 44. Qe7+ {[%clk 0:00:01]}  Kh6 {[%clk 0:00:58]} 45. Qe5 {[%clk 0:00:01]}  Bf3 {[%clk 0:00:56]} 46. Qf4+ {[%clk 0:00:01]}  Kh7 {[%clk 0:00:54]} 47. Qxf3 {[%clk 0:00:02]}  Qb1+ {[%clk 0:00:55]} 48. Kg2 {[%clk 0:00:02]}  Qg6+ {[%clk 0:00:55]} 49. Qg3 {[%clk 0:00:02]}  Qe4+ {[%clk 0:00:55]} 50. Qf3 {[%clk 0:00:02]}  Qxf3+ {[%clk 0:00:55]} 51. Kxf3 {[%clk 0:00:02]}  b4 {[%clk 0:00:56]} 52. Ke2 {[%clk 0:00:02]}  bxc3 {[%clk 0:00:57]} 53. Kd3 {[%clk 0:00:03]}  c2 {[%clk 0:00:58]} 54. Kxc2 {[%clk 0:00:03]}  c5 {[%clk 0:00:58]} 55. Kd3 {[%clk 0:00:04]}  c4+ {[%clk 0:00:59]} 56. Kxc4 {[%clk 0:00:04]}  h4 {[%clk 0:00:59]} 57. Kc5 {[%clk 0:00:05]}  h3 {[%clk 0:00:59]} 58. Ng4 {[%clk 0:00:05]}  h2 {[%clk 0:01:00]} 59. Nxh2 {[%clk 0:00:05]}  a5 {[%clk 0:01:01]} 60. Kb5 {[%clk 0:00:05]}  a4 {[%clk 0:00:42]} 61. Kxa4 {[%clk 0:00:06]} 1-0


[Site "https://www.chess.com"]

[Event "Titled Tuesday Blitz May 9 Late 2023"]
[White "Mikhalsky, Vladimir"]
[Black "Kalaiyalahan, Akshaya"]
[WhiteFideId "14144352"]
[BlackFideId "422894"]
[WhiteElo "2236"]
[BlackElo "2043"]
[Result "1-0"]
[Round "02"]
[TimeControl "180+2"]
[Date "2023.05.09"]
[WhiteClock "0:00:47"]
[BlackClock "0:00:13"]

1. d4 {[%clk 0:02:59]}  Nf6 {[%clk 0:02:57]} 2. c4 {[%clk 0:02:59]}  b6 {[%clk 0:02:56]} 3. d5 {[%clk 0:02:57]}  Bb7 {[%clk 0:02:55]} 4. Nc3 {[%clk 0:02:55]}  c6 {[%clk 0:02:45]} 5. e4 {[%clk 0:02:54]}  cxd5 {[%clk 0:02:43]} 6. exd5 {[%clk 0:02:47]}  Na6 {[%clk 0:02:40]} 7. a3 {[%clk 0:02:43]}  g6 {[%clk 0:02:36]} 8. Nf3 {[%clk 0:02:32]}  Bg7 {[%clk 0:02:29]} 9. Bf4 {[%clk 0:02:26]}  O-O {[%clk 0:02:29]} 10. Qd2 {[%clk 0:02:25]}  Nc5 {[%clk 0:02:27]} 11. Rd1 {[%clk 0:02:16]}  Nce4 {[%clk 0:02:18]} 12. Nxe4 {[%clk 0:02:12]}  Nxe4 {[%clk 0:02:18]} 13. Qe3 {[%clk 0:02:09]}  f5 {[%clk 0:02:02]} 14. Be5 {[%clk 0:02:05]}  Bxe5 {[%clk 0:01:32]} 15. Nxe5 {[%clk 0:02:04]}  Qc7 {[%clk 0:01:32]} 16. f4 {[%clk 0:01:44]}  d6 {[%clk 0:01:24]} 17. Nf3 {[%clk 0:01:44]}  Ba6 {[%clk 0:01:24]} 18. Rc1 {[%clk 0:01:37]}  Qc5 {[%clk 0:01:12]} 19. Nd4 {[%clk 0:01:34]}  Rfc8 {[%clk 0:01:02]} 20. b4 {[%clk 0:01:33]}  Qc7 {[%clk 0:00:58]} 21. Ne6 {[%clk 0:01:15]}  Qd7 {[%clk 0:00:49]} 22. Bd3 {[%clk 0:01:14]}  Nf6 {[%clk 0:00:44]} 23. b5 {[%clk 0:01:06]}  Bb7 {[%clk 0:00:41]} 24. O-O {[%clk 0:01:02]}  a6 {[%clk 0:00:30]} 25. Bxf5 {[%clk 0:00:55]}  gxf5 {[%clk 0:00:26]} 26. Qg3+ {[%clk 0:00:54]}  Ng4 {[%clk 0:00:21]} 27. h3 {[%clk 0:00:54]}  h5 {[%clk 0:00:21]} 28. hxg4 {[%clk 0:00:52]}  hxg4 {[%clk 0:00:21]} 29. Qh4 {[%clk 0:00:52]}  Qe8 {[%clk 0:00:13]} 30. Qg5+ {[%clk 0:00:47]} 1-0


[Site "https://www.chess.com"]

[Event "Titled Tuesday Blitz May 9 Late 2023"]
[White "OPQRC"]
[Black "Nepo"]
[WhiteElo "2462"]
[BlackElo "2240"]
[Result "1-0"]
[Round "02"]
[TimeControl "180+2"]
[Date "2023.05.09"]
[WhiteClock "0:02:12"]
[BlackClock "0:00:49"]

1. e4 {[%clk 0:03:00]}  e5 {[%clk 0:02:56]} 2. Nf3 {[%clk 0:02:52]}  Nf6 {[%clk 0:02:55]} 3. d4 {[%clk 0:02:52]}  Nxe4 {[%clk 0:02:52]} 4. Bd3 {[%clk 0:02:51]}  d5 {[%clk 0:02:49]} 5. Nxe5 {[%clk 0:02:51]}  Nd7 {[%clk 0:02:46]} 6. O-O {[%clk 0:02:51]}  Nxe5 {[%clk 0:02:30]} 7. dxe5 {[%clk 0:02:52]}  Nc5 {[%clk 0:02:30]} 8. f4 {[%clk 0:02:48]}  c6 {[%clk 0:02:23]} 9. f5 {[%clk 0:02:44]}  Nxd3 {[%clk 0:02:18]} 10. cxd3 {[%clk 0:02:44]}  g6 {[%clk 0:02:18]} 11. f6 {[%clk 0:02:38]}  Be6 {[%clk 0:02:17]} 12. d4 {[%clk 0:02:32]}  h5 {[%clk 0:02:06]} 13. Nd2 {[%clk 0:02:27]}  Qd7 {[%clk 0:02:05]} 14. Nb3 {[%clk 0:02:26]}  h4 {[%clk 0:01:58]} 15. Bd2 {[%clk 0:02:21]}  b6 {[%clk 0:01:31]} 16. Rc1 {[%clk 0:02:20]}  Bh6 {[%clk 0:01:26]} 17. Bxh6 {[%clk 0:02:18]}  Rxh6 {[%clk 0:01:26]} 18. Rc3 {[%clk 0:02:17]}  g5 {[%clk 0:01:24]} 19. Qc1 {[%clk 0:02:12]}  Rg6 {[%clk 0:00:49]} 20. Rxc6 {[%clk 0:02:12]} 1-0


[Site "https://www.chess.com"]

[Event "Titled Tuesday Blitz May 9 Late 2023"]
[White "DubiousM0ves532"]
[Black "Phillips, Rene"]
[BlackFideId "2056275"]
[WhiteElo "2449"]
[BlackElo "2196"]
[Result "1-0"]
[Round "02"]
[TimeControl "180+2"]
[Date "2023.05.09"]
[WhiteClock "0:00:16"]
[BlackClock "0:00:00"]

1. Nf3 {[%clk 0:03:00]}  d5 {[%clk 0:02:59]} 2. d4 {[%clk 0:03:00]}  c6 {[%clk 0:03:00]} 3. Bf4 {[%clk 0:03:00]}  Bg4 {[%clk 0:02:59]} 4. e3 {[%clk 0:02:59]}  Nd7 {[%clk 0:02:58]} 5. Nbd2 {[%clk 0:02:59]}  Ngf6 {[%clk 0:02:58]} 6. h3 {[%clk 0:02:59]}  Bh5 {[%clk 0:02:58]} 7. c4 {[%clk 0:02:58]}  e6 {[%clk 0:02:58]} 8. Bd3 {[%clk 0:02:54]}  Qb6 {[%clk 0:02:56]} 9. Qc2 {[%clk 0:02:52]}  Bb4 {[%clk 0:02:46]} 10. c5 {[%clk 0:02:49]}  Qa5 {[%clk 0:02:41]} 11. a3 {[%clk 0:02:40]}  Bxf3 {[%clk 0:02:37]} 12. gxf3 {[%clk 0:02:40]}  Bxd2+ {[%clk 0:02:30]} 13. Qxd2 {[%clk 0:02:39]}  Qxd2+ {[%clk 0:02:30]} 14. Kxd2 {[%clk 0:02:40]}  a6 {[%clk 0:02:23]} 15. b4 {[%clk 0:02:39]}  O-O {[%clk 0:02:22]} 16. Bd6 {[%clk 0:02:29]}  Rfe8 {[%clk 0:02:21]} 17. f4 {[%clk 0:02:29]}  g6 {[%clk 0:02:15]} 18. a4 {[%clk 0:02:27]}  Rec8 {[%clk 0:02:10]} 19. Be7 {[%clk 0:02:03]}  Kg7 {[%clk 0:02:02]} 20. b5 {[%clk 0:01:53]}  axb5 {[%clk 0:01:57]} 21. axb5 {[%clk 0:01:54]}  Re8 {[%clk 0:01:30]} 22. Bxf6+ {[%clk 0:01:48]}  Kxf6 {[%clk 0:01:17]} 23. b6 {[%clk 0:01:46]}  Ke7 {[%clk 0:01:04]} 24. Rhb1 {[%clk 0:01:40]}  Rxa1 {[%clk 0:00:59]} 25. Rxa1 {[%clk 0:01:40]}  Rb8 {[%clk 0:00:59]} 26. Ra7 {[%clk 0:01:34]}  Kd8 {[%clk 0:00:53]} 27. h4 {[%clk 0:01:23]}  h5 {[%clk 0:00:50]} 28. Kc3 {[%clk 0:01:05]}  Kc8 {[%clk 0:00:50]} 29. f3 {[%clk 0:00:54]}  f5 {[%clk 0:00:38]} 30. e4 {[%clk 0:00:53]}  Nf6 {[%clk 0:00:37]} 31. Kd2 {[%clk 0:00:19]}  fxe4 {[%clk 0:00:31]} 32. fxe4 {[%clk 0:00:20]}  dxe4 {[%clk 0:00:31]} 33. Bc2 {[%clk 0:00:19]}  Kd7 {[%clk 0:00:29]} 34. Ke3 {[%clk 0:00:18]}  Kc8 {[%clk 0:00:20]} 35. Bxe4 {[%clk 0:00:18]}  Nd5+ {[%clk 0:00:16]} 36. Kf3 {[%clk 0:00:18]}  Nf6 {[%clk 0:00:11]} 37. Bxg6 {[%clk 0:00:17]}  Kd7 {[%clk 0:00:09]} 38. Bd3 {[%clk 0:00:16]}  Ke7 {[%clk 0:00:09]} 39. Ba6 {[%clk 0:00:15]}  Nd5 {[%clk 0:00:03]} 40. Rxb7+ {[%clk 0:00:15]}  Rxb7 {[%clk 0:00:00]} 41. Bxb7 {[%clk 0:00:16]} 1-0


[Site "https://www.chess.com"]

[Event "Titled Tuesday Blitz May 9 Late 2023"]
[White "Almedina Ortiz, Edgardo J."]
[Black "Foerster-Yialamas, Lucas"]
[WhiteFideId "3100197"]
[BlackFideId "30901774"]
[WhiteElo "2217"]
[BlackElo "2067"]
[Result "0-1"]
[Round "02"]
[TimeControl "180+2"]
[Date "2023.05.09"]
[WhiteClock "0:00:00"]
[BlackClock "0:01:28"]

1. d4 {[%clk 0:03:00]}  Nf6 {[%clk 0:02:58]} 2. c4 {[%clk 0:03:00]}  e6 {[%clk 0:02:58]} 3. Nc3 {[%clk 0:02:59]}  Bb4 {[%clk 0:02:58]} 4. Qc2 {[%clk 0:03:00]}  c5 {[%clk 0:02:57]} 5. dxc5 {[%clk 0:02:59]}  Qa5 {[%clk 0:02:55]} 6. Bd2 {[%clk 0:02:41]}  Bxc5 {[%clk 0:02:54]} 7. Nf3 {[%clk 0:02:30]}  Nc6 {[%clk 0:02:52]} 8. e3 {[%clk 0:02:19]}  O-O {[%clk 0:02:41]} 9. a3 {[%clk 0:02:17]}  Qc7 {[%clk 0:02:20]} 10. b4 {[%clk 0:02:03]}  Be7 {[%clk 0:02:14]} 11. Be2 {[%clk 0:01:30]}  b6 {[%clk 0:02:12]} 12. O-O {[%clk 0:01:30]}  Bb7 {[%clk 0:02:09]} 13. Rfd1 {[%clk 0:01:29]}  Rac8 {[%clk 0:02:08]} 14. Rac1 {[%clk 0:01:25]}  Qb8 {[%clk 0:01:43]} 15. Qb2 {[%clk 0:01:20]}  d5 {[%clk 0:01:37]} 16. cxd5 {[%clk 0:01:19]}  exd5 {[%clk 0:01:36]} 17. Nb5 {[%clk 0:01:12]}  a6 {[%clk 0:01:36]} 18. Nbd4 {[%clk 0:01:12]}  Ne4 {[%clk 0:01:35]} 19. Nxc6 {[%clk 0:00:59]}  Rxc6 {[%clk 0:01:31]} 20. Rxc6 {[%clk 0:00:59]}  Bxc6 {[%clk 0:01:32]} 21. Bxa6 {[%clk 0:00:31]}  b5 {[%clk 0:01:32]} 22. Nd4 {[%clk 0:00:30]}  Qb6 {[%clk 0:01:28]} 23. Nxc6 {[%clk 0:00:17]}  Qxc6 {[%clk 0:01:29]} 24. Bxb5 {[%clk 0:00:13]}  Qxb5 {[%clk 0:01:30]} 25. Be1 {[%clk 0:00:14]}  Bf6 {[%clk 0:01:30]} 26. Qb3 {[%clk 0:00:13]}  Qe2 {[%clk 0:01:29]} 27. Qxd5 {[%clk 0:00:10]}  Bc3 {[%clk 0:01:26]} 28. Bxc3 {[%clk 0:00:05]}  Nxc3 {[%clk 0:01:27]} 29. Qf3 {[%clk 0:00:01]}  Qxd1+ {[%clk 0:01:27]} 30. Qxd1 {[%clk 0:00:00]}  Nxd1 {[%clk 0:01:28]} 0-1


[Site "https://www.chess.com"]